[Event "FIDE World Rapid Chess Championship 2021"]
[White "Lopusiewicz, Piotr"]
[Black "Yunusov, Mukhammad"]
[WhiteFideId "1116029"]
[BlackFideId "14700930"]
[WhiteElo "2197"]
[BlackElo "1832"]
[Result "1-0"]
[Round "12"]
[TimeControl "900+10"]
[Date "2021.12.28"]
[WhiteClock "0:01:12"]
[BlackClock "0:00:36"]

1. d4 {[%clk 0:15:00]}  d5 {[%clk 0:15:00]} 2. c4 {[%clk 0:15:00]}  c6 {[%clk 0:15:00]} 3. Nf3 {[%clk 0:15:00]}  Nf6 {[%clk 0:15:00]} 4. cxd5 {[%clk 0:15:00]}  cxd5 {[%clk 0:15:00]} 5. Nc3 {[%clk 0:15:00]}  Nc6 {[%clk 0:15:00]} 6. Bf4 {[%clk 0:15:00]}  a6 {[%clk 0:15:00]} 7. Qb3 {[%clk 0:15:00]}  Na5 {[%clk 0:15:00]} 8. Qc2 {[%clk 0:15:52]}  g6 {[%clk 0:14:15]} 9. e3 {[%clk 0:15:52]}  Bf5 {[%clk 0:14:15]} 10. Bd3 {[%clk 0:15:52]}  Bxd3 {[%clk 0:14:15]} 11. Qxd3 {[%clk 0:15:52]}  Bg7 {[%clk 0:14:15]} 12. O-O {[%clk 0:15:52]}  O-O {[%clk 0:14:23]} 13. h3 {[%clk 0:13:49]}  b5 {[%clk 0:14:23]} 14. a4 {[%clk 0:13:06]}  b4 {[%clk 0:13:32]} 15. Nb1 {[%clk 0:10:47]}  Qb6 {[%clk 0:12:34]} 16. Ne5 {[%clk 0:10:47]}  Rfc8 {[%clk 0:11:28]} 17. Nd2 {[%clk 0:09:41]}  Qb7 {[%clk 0:11:28]} 18. Rfc1 {[%clk 0:09:41]}  e6 {[%clk 0:09:00]} 19. Nb3 {[%clk 0:09:33]}  Nxb3 {[%clk 0:08:12]} 20. Qxb3 {[%clk 0:07:34]}  a5 {[%clk 0:08:12]} 21. Qd3 {[%clk 0:07:34]}  Nd7 {[%clk 0:06:39]} 22. Nxd7 {[%clk 0:06:40]}  Qxd7 {[%clk 0:04:06]} 23. Qb5 {[%clk 0:06:40]}  Qd8 {[%clk 0:04:14]} 24. Qb7 {[%clk 0:06:10]}  Rc4 {[%clk 0:04:14]} 25. b3 {[%clk 0:06:10]}  Rc3 {[%clk 0:04:14]} 26. Rxc3 {[%clk 0:04:49]}  bxc3 {[%clk 0:01:18]} 27. Qc7 {[%clk 0:04:49]}  Qxc7 {[%clk 0:01:18]} 28. Bxc7 {[%clk 0:04:49]}  Bf8 {[%clk 0:01:18]} 29. Rc1 {[%clk 0:03:22]}  Bb4 {[%clk 0:00:57]} 30. Rc2 {[%clk 0:03:22]}  f6 {[%clk 0:00:53]} 31. Kf1 {[%clk 0:03:22]}  Re8 {[%clk 0:00:53]} 32. Ke2 {[%clk 0:03:22]}  e5 {[%clk 0:00:53]} 33. dxe5 {[%clk 0:03:22]}  fxe5 {[%clk 0:00:53]} 34. f3 {[%clk 0:02:55]}  Kf7 {[%clk 0:00:44]} 35. e4 {[%clk 0:02:55]}  dxe4 {[%clk 0:00:44]} 36. fxe4 {[%clk 0:02:55]}  Ke6 {[%clk 0:00:44]} 37. Bb6 {[%clk 0:02:55]}  Rc8 {[%clk 0:00:44]} 38. Kd3 {[%clk 0:02:17]}  Rc6 {[%clk 0:00:30]} 39. Be3 {[%clk 0:02:17]}  Rc8 {[%clk 0:00:30]} 40. Re2 {[%clk 0:02:17]}  Rc7 {[%clk 0:00:30]} 41. Kc2 {[%clk 0:02:17]}  Rd7 {[%clk 0:00:30]} 42. Bf2 {[%clk 0:02:17]}  Rf7 {[%clk 0:00:30]} 43. Be1 {[%clk 0:02:17]}  Rc7 {[%clk 0:00:30]} 44. Re3 {[%clk 0:02:17]}  Rf7 {[%clk 0:00:30]} 45. Rf3 {[%clk 0:02:17]}  Rd7 {[%clk 0:00:30]} 46. Bxc3 {[%clk 0:02:17]}  Bxc3 {[%clk 0:00:30]} 47. Rxc3 {[%clk 0:02:17]}  Rd4 {[%clk 0:00:30]} 48. Rc6+ {[%clk 0:02:17]}  Kd7 {[%clk 0:00:30]} 49. Rc5 {[%clk 0:02:17]}  Rxe4 {[%clk 0:00:30]} 50. Rxa5 {[%clk 0:01:48]}  Re2+ {[%clk 0:00:49]} 51. Kd3 {[%clk 0:01:48]}  Rxg2 {[%clk 0:00:49]} 52. Rxe5 {[%clk 0:01:48]}  Kd6 {[%clk 0:00:49]} 53. Re3 {[%clk 0:01:48]}  h5 {[%clk 0:00:49]} 54. Kc4 {[%clk 0:01:48]}  h4 {[%clk 0:00:49]} 55. Rd3+ {[%clk 0:01:48]}  Kc6 {[%clk 0:00:49]} 56. Rf3 {[%clk 0:01:48]}  g5 {[%clk 0:00:49]} 57. Rf6+ {[%clk 0:01:48]}  Kd7 {[%clk 0:00:49]} 58. a5 {[%clk 0:01:48]}  g4 {[%clk 0:00:49]} 59. hxg4 {[%clk 0:01:48]}  h3 {[%clk 0:00:49]} 60. Rh6 {[%clk 0:01:48]}  Rxg4+ {[%clk 0:00:49]} 61. Kb5 {[%clk 0:01:48]}  Rg5+ {[%clk 0:00:49]} 62. Kb6 {[%clk 0:02:04]}  Rg8 {[%clk 0:00:53]} 63. Rxh3 {[%clk 0:02:04]}  Kc8 {[%clk 0:00:53]} 64. Rc3+ {[%clk 0:02:04]}  Kb8 {[%clk 0:00:53]} 65. b4 {[%clk 0:02:04]}  Rg6+ {[%clk 0:00:53]} 66. Rc6 {[%clk 0:02:04]}  Rg7 {[%clk 0:00:53]} 67. a6 {[%clk 0:02:04]}  Rb7+ {[%clk 0:00:53]} 68. Ka5 {[%clk 0:02:04]}  Rg7 {[%clk 0:00:53]} 69. b5 {[%clk 0:02:04]}  Rf7 {[%clk 0:00:53]} 70. Rd6 {[%clk 0:02:04]}  Rf8 {[%clk 0:00:44]} 71. Kb6 {[%clk 0:02:16]}  Ka8 {[%clk 0:00:44]} 72. Kc7 {[%clk 0:02:16]}  Ka7 {[%clk 0:00:44]} 73. Rd7 {[%clk 0:02:16]}  Rf6 {[%clk 0:00:44]} 74. Rd6 {[%clk 0:02:16]}  Rf8 {[%clk 0:00:44]} 75. Kc6 {[%clk 0:02:16]}  Rc8+ {[%clk 0:00:44]} 76. Kd5 {[%clk 0:02:16]}  Rc2 {[%clk 0:00:44]} 77. Rd7+ {[%clk 0:01:12]}  Ka8 {[%clk 0:00:36]} 78. b6 {[%clk 0:01:12]}  Rd2+ {[%clk 0:00:36]} 79. Ke6 {[%clk 0:01:12]}  Rxd7 {[%clk 0:00:36]} 80. Kxd7 {[%clk 0:01:12]}  Kb8 {[%clk 0:00:36]} 81. Kc6 {[%clk 0:01:12]}  Ka8 {[%clk 0:00:36]} 82. b7+ {[%clk 0:01:12]}  Kb8 {[%clk 0:00:36]} 83. a7+ {[%clk 0:01:12]} 1-0


[Site "http://www.Chess.com"]

[Event "FIDE World Rapid Chess Championship 2021"]
[White "Nakamura, Hikaru"]
[Black "Carlsen, Magnus"]
[WhiteFideId "2016192"]
[BlackFideId "1503014"]
[WhiteElo "2836"]
[BlackElo "2842"]
[Result "1/2-1/2"]
[Round "13"]
[TimeControl "900+10"]
[Date "2021.12.28"]
[WhiteClock "0:01:08"]
[BlackClock "0:02:41"]

1. d4 {[%clk 0:15:00]}  d5 {[%clk 0:15:00]} 2. c4 {[%clk 0:15:00]}  e6 {[%clk 0:15:00]} 3. Nf3 {[%clk 0:15:00]}  Nf6 {[%clk 0:15:28]} 4. Nc3 {[%clk 0:15:35]}  Be7 {[%clk 0:15:28]} 5. Bf4 {[%clk 0:15:35]}  O-O {[%clk 0:15:28]} 6. e3 {[%clk 0:15:35]}  c5 {[%clk 0:15:28]} 7. dxc5 {[%clk 0:15:35]}  Bxc5 {[%clk 0:15:28]} 8. Qc2 {[%clk 0:15:35]}  Nc6 {[%clk 0:15:28]} 9. Rd1 {[%clk 0:15:35]}  Qb6 {[%clk 0:15:28]} 10. Be2 {[%clk 0:14:16]}  d4 {[%clk 0:16:00]} 11. exd4 {[%clk 0:14:16]}  Nxd4 {[%clk 0:16:00]} 12. Nxd4 {[%clk 0:14:16]}  Bxd4 {[%clk 0:16:00]} 13. O-O {[%clk 0:14:16]}  Bd7 {[%clk 0:16:23]} 14. Bf3 {[%clk 0:11:12]}  Rad8 {[%clk 0:16:23]} 15. b4 {[%clk 0:10:47]}  Bc6 {[%clk 0:12:26]} 16. Bxc6 {[%clk 0:10:47]}  bxc6 {[%clk 0:11:13]} 17. Ne2 {[%clk 0:08:24]}  e5 {[%clk 0:11:13]} 18. Nxd4 {[%clk 0:08:24]}  exd4 {[%clk 0:11:13]} 19. Bg5 {[%clk 0:07:31]}  Qxb4 {[%clk 0:07:05]} 20. Bxf6 {[%clk 0:07:31]}  gxf6 {[%clk 0:07:05]} 21. Qf5 {[%clk 0:07:31]}  Rfe8 {[%clk 0:06:47]} 22. Qxf6 {[%clk 0:02:42]}  Qd6 {[%clk 0:06:47]} 23. Qg5+ {[%clk 0:02:42]}  Qg6 {[%clk 0:06:47]} 24. f4 {[%clk 0:02:42]}  Qxg5 {[%clk 0:06:47]} 25. fxg5 {[%clk 0:02:42]}  Re5 {[%clk 0:06:47]} 26. Rf4 {[%clk 0:02:42]}  d3 {[%clk 0:05:45]} 27. Rd2 {[%clk 0:01:48]}  Rxg5 {[%clk 0:05:45]} 28. Rf3 {[%clk 0:01:48]}  Rd4 {[%clk 0:05:45]} 29. Rdxd3 {[%clk 0:01:11]}  Rxc4 {[%clk 0:04:29]} 30. Rg3 {[%clk 0:01:11]}  Rc5 {[%clk 0:04:29]} 31. Rxg5+ {[%clk 0:01:11]}  Rxg5 {[%clk 0:04:29]} 32. Ra3 {[%clk 0:01:11]}  a5 {[%clk 0:04:29]} 33. Rc3 {[%clk 0:01:11]}  Rb5 {[%clk 0:04:29]} 34. Rxc6 {[%clk 0:01:11]}  Rb2 {[%clk 0:04:29]} 35. a4 {[%clk 0:01:11]}  Rb4 {[%clk 0:04:29]} 36. Kf2 {[%clk 0:01:11]}  Rxa4 {[%clk 0:04:29]} 37. Ra6 {[%clk 0:01:11]}  h5 {[%clk 0:04:29]} 38. h4 {[%clk 0:01:26]}  Rf4+ {[%clk 0:04:00]} 39. Ke3 {[%clk 0:01:26]}  Rf5 {[%clk 0:04:00]} 40. g3 {[%clk 0:01:26]}  Kg7 {[%clk 0:04:00]} 41. Ke4 {[%clk 0:01:26]}  Rb5 {[%clk 0:04:00]} 42. Kf4 {[%clk 0:01:26]}  f6 {[%clk 0:04:00]} 43. Ra7+ {[%clk 0:01:26]}  Kg6 {[%clk 0:04:00]} 44. Ke4 {[%clk 0:01:26]}  Rb4+ {[%clk 0:04:00]} 45. Kf3 {[%clk 0:01:26]}  Rb3+ {[%clk 0:03:53]} 46. Kf4 {[%clk 0:00:50]}  Ra3 {[%clk 0:03:53]} 47. Rc7 {[%clk 0:00:50]}  a4 {[%clk 0:03:53]} 48. Ra7 {[%clk 0:00:50]}  Ra2 {[%clk 0:03:53]} 49. Ra5 {[%clk 0:00:50]}  a3 {[%clk 0:03:53]} 50. Kf3 {[%clk 0:00:50]}  Ra1 {[%clk 0:03:53]} 51. Kf2 {[%clk 0:00:50]}  f5 {[%clk 0:03:53]} 52. Ra6+ {[%clk 0:01:27]}  Kf7 {[%clk 0:02:41]} 53. Kg2 {[%clk 0:01:27]}  Ke7 {[%clk 0:02:41]} 54. Ra5 {[%clk 0:01:27]}  Ke6 {[%clk 0:02:41]} 55. Kh2 {[%clk 0:01:27]}  Ra2+ {[%clk 0:02:41]} 56. Kh3 {[%clk 0:01:27]}  Kf6 {[%clk 0:02:41]} 57. Ra8 {[%clk 0:01:27]}  Ke5 {[%clk 0:02:41]} 58. Ra4 {[%clk 0:01:27]}  Kd5 {[%clk 0:02:41]} 59. Rf4 {[%clk 0:01:27]}  Ke6 {[%clk 0:02:41]} 60. Rf3 {[%clk 0:01:27]}  Ke5 {[%clk 0:02:41]} 61. Re3+ {[%clk 0:01:08]}  Kd4 {[%clk 0:02:41]} 62. Rf3 {[%clk 0:01:08]}  Ke4 {[%clk 0:02:41]} 63. Rf4+ {[%clk 0:01:08]}  Ke3 {[%clk 0:02:41]} 64. Rxf5 {[%clk 0:01:08]}  Ra1 {[%clk 0:02:41]} 65. Kg2 {[%clk 0:01:08]}  Ra2+ {[%clk 0:02:41]} 66. Kh3 {[%clk 0:01:08]} 1/2-1/2


[Site "http://www.Chess.com"]

[Event "FIDE World Rapid Chess Championship 2021"]
[White "Gukesh, D"]
[Black "Grischuk, Alexander"]
[WhiteFideId "46616543"]
[BlackFideId "4126025"]
[WhiteElo "2050"]
[BlackElo "2763"]
[Result "1/2-1/2"]
[Round "13"]
[TimeControl "900+10"]
[Date "2021.12.28"]
[WhiteClock "0:00:20"]
[BlackClock "0:00:49"]

1. d4 {[%clk 0:15:00]}  Nf6 {[%clk 0:15:00]} 2. c4 {[%clk 0:15:00]}  e6 {[%clk 0:15:00]} 3. Nf3 {[%clk 0:15:00]}  d5 {[%clk 0:15:00]} 4. Nc3 {[%clk 0:15:00]}  Be7 {[%clk 0:15:00]} 5. Bf4 {[%clk 0:15:21]}  O-O {[%clk 0:15:57]} 6. e3 {[%clk 0:15:21]}  Nbd7 {[%clk 0:15:57]} 7. c5 {[%clk 0:15:21]}  Ne4 {[%clk 0:15:57]} 8. Nxe4 {[%clk 0:15:21]}  dxe4 {[%clk 0:15:57]} 9. Ne5 {[%clk 0:15:21]}  Nxe5 {[%clk 0:15:57]} 10. Bxe5 {[%clk 0:15:21]}  b6 {[%clk 0:15:43]} 11. Qg4 {[%clk 0:14:02]}  f6 {[%clk 0:11:57]} 12. Qxe4 {[%clk 0:09:10]}  Rb8 {[%clk 0:11:57]} 13. Bg3 {[%clk 0:09:18]}  bxc5 {[%clk 0:09:14]} 14. Bc4 {[%clk 0:09:18]}  cxd4 {[%clk 0:07:58]} 15. O-O-O {[%clk 0:07:51]}  Kh8 {[%clk 0:02:51]} 16. Qxd4 {[%clk 0:07:23]}  Qxd4 {[%clk 0:02:51]} 17. exd4 {[%clk 0:07:23]}  Rb6 {[%clk 0:02:51]} 18. Kb1 {[%clk 0:06:12]}  Bd6 {[%clk 0:02:38]} 19. Rhe1 {[%clk 0:06:12]}  Rd8 {[%clk 0:02:38]} 20. Bb3 {[%clk 0:06:12]}  Bb7 {[%clk 0:02:17]} 21. Rxe6 {[%clk 0:03:59]}  Bxg3 {[%clk 0:02:17]} 22. hxg3 {[%clk 0:03:59]}  Rxe6 {[%clk 0:02:17]} 23. Bxe6 {[%clk 0:03:59]}  Bxg2 {[%clk 0:02:17]} 24. Kc2 {[%clk 0:03:39]}  g6 {[%clk 0:00:49]} 25. Kc3 {[%clk 0:03:39]}  Kg7 {[%clk 0:00:49]} 26. d5 {[%clk 0:03:39]}  f5 {[%clk 0:00:49]} 27. Rd4 {[%clk 0:01:18]}  Rd6 {[%clk 0:00:40]} 28. Ra4 {[%clk 0:01:18]}  Bxd5 {[%clk 0:00:40]} 29. Bxd5 {[%clk 0:01:18]}  Rxd5 {[%clk 0:00:40]} 30. Rxa7 {[%clk 0:01:18]}  Rc5+ {[%clk 0:00:40]} 31. Kd3 {[%clk 0:01:18]}  g5 {[%clk 0:00:40]} 32. b4 {[%clk 0:01:18]}  Rc1 {[%clk 0:00:40]} 33. Kd2 {[%clk 0:00:20]}  Rc4 {[%clk 0:00:49]} 34. Rb7 {[%clk 0:00:20]}  h5 {[%clk 0:00:49]} 35. Kd3 {[%clk 0:00:20]}  Rc1 {[%clk 0:00:49]} 36. Kd2 {[%clk 0:00:20]}  Rc4 {[%clk 0:00:49]} 37. Kd3 {[%clk 0:00:20]}  Rc1 {[%clk 0:00:49]} 38. Kd2 {[%clk 0:00:20]} 1/2-1/2


[Site "http://www.Chess.com"]

[Event "FIDE World Rapid Chess Championship 2021"]
[White "Vachier-Lagrave, Maxime"]
[Black "Fedoseev, Vladimir"]
[WhiteFideId "623539"]
[BlackFideId "24130737"]
[WhiteElo "2773"]
[BlackElo "2692"]
[Result "1/2-1/2"]
[Round "13"]
[TimeControl "900+10"]
[Date "2021.12.28"]
[WhiteClock "0:00:44"]
[BlackClock "0:01:10"]

1. e4 {[%clk 0:15:00]}  c6 {[%clk 0:15:00]} 2. d4 {[%clk 0:15:00]}  d5 {[%clk 0:15:00]} 3. e5 {[%clk 0:15:00]}  c5 {[%clk 0:15:00]} 4. Nf3 {[%clk 0:15:00]}  cxd4 {[%clk 0:15:00]} 5. Qxd4 {[%clk 0:15:00]}  Nc6 {[%clk 0:16:07]} 6. Qf4 {[%clk 0:15:34]}  g6 {[%clk 0:16:07]} 7. Nc3 {[%clk 0:15:34]}  d4 {[%clk 0:16:07]} 8. Bc4 {[%clk 0:15:34]}  Bf5 {[%clk 0:16:07]} 9. Ne2 {[%clk 0:15:34]}  Bh6 {[%clk 0:16:07]} 10. Qh4 {[%clk 0:15:34]}  Qa5+ {[%clk 0:16:21]} 11. c3 {[%clk 0:13:41]}  Bxc1 {[%clk 0:14:14]} 12. Rxc1 {[%clk 0:13:49]}  d3 {[%clk 0:14:14]} 13. Ned4 {[%clk 0:13:53]}  Nxe5 {[%clk 0:10:28]} 14. Bb5+ {[%clk 0:13:53]}  Bd7 {[%clk 0:10:28]} 15. Nxe5 {[%clk 0:13:53]}  Bxb5 {[%clk 0:10:28]} 16. Rd1 {[%clk 0:13:53]}  Ba4 {[%clk 0:10:49]} 17. Qf4 {[%clk 0:09:17]}  f6 {[%clk 0:07:15]} 18. Nc4 {[%clk 0:09:17]}  Qd5 {[%clk 0:07:15]} 19. b3 {[%clk 0:09:17]}  e5 {[%clk 0:07:15]} 20. Qf3 {[%clk 0:05:54]}  Qxf3 {[%clk 0:06:44]} 21. Nxf3 {[%clk 0:05:54]}  Bc6 {[%clk 0:06:44]} 22. Rxd3 {[%clk 0:05:54]}  Ne7 {[%clk 0:06:44]} 23. Rd2 {[%clk 0:04:18]}  Rd8 {[%clk 0:06:06]} 24. Nd6+ {[%clk 0:03:07]}  Kf8 {[%clk 0:04:31]} 25. O-O {[%clk 0:03:07]}  Nd5 {[%clk 0:04:31]} 26. Ne4 {[%clk 0:03:07]}  Ke7 {[%clk 0:04:31]} 27. Rfd1 {[%clk 0:03:07]}  f5 {[%clk 0:03:04]} 28. c4 {[%clk 0:02:04]}  Nb4 {[%clk 0:03:04]} 29. Nd6 {[%clk 0:02:04]}  Bxf3 {[%clk 0:03:04]} 30. gxf3 {[%clk 0:02:04]}  b6 {[%clk 0:01:47]} 31. Nb5 {[%clk 0:01:32]}  Rxd2 {[%clk 0:01:47]} 32. Rxd2 {[%clk 0:01:32]}  Rd8 {[%clk 0:01:47]} 33. Rxd8 {[%clk 0:01:32]}  Kxd8 {[%clk 0:01:47]} 34. Nxa7 {[%clk 0:01:32]}  Kd7 {[%clk 0:01:47]} 35. a3 {[%clk 0:01:32]}  Nc2 {[%clk 0:01:47]} 36. Nb5 {[%clk 0:01:32]}  Ne1 {[%clk 0:01:47]} 37. f4 {[%clk 0:01:32]}  Nf3+ {[%clk 0:01:47]} 38. Kg2 {[%clk 0:01:29]}  e4 {[%clk 0:01:07]} 39. b4 {[%clk 0:01:29]}  Nd2 {[%clk 0:01:07]} 40. c5 {[%clk 0:01:29]}  bxc5 {[%clk 0:01:07]} 41. bxc5 {[%clk 0:01:29]}  Nb3 {[%clk 0:01:07]} 42. Kf1 {[%clk 0:01:29]}  Kc6 {[%clk 0:01:07]} 43. Nd6 {[%clk 0:01:29]}  Nxc5 {[%clk 0:01:07]} 44. Nf7 {[%clk 0:01:29]}  Ne6 {[%clk 0:01:07]} 45. f3 {[%clk 0:00:22]}  exf3 {[%clk 0:01:10]} 46. Kf2 {[%clk 0:00:22]}  Nxf4 {[%clk 0:01:10]} 47. Kxf3 {[%clk 0:00:22]}  Ne6 {[%clk 0:01:10]} 48. h4 {[%clk 0:00:22]}  Kb5 {[%clk 0:01:10]} 49. h5 {[%clk 0:00:22]}  Ka4 {[%clk 0:01:10]} 50. hxg6 {[%clk 0:00:22]}  hxg6 {[%clk 0:01:10]} 51. Ne5 {[%clk 0:00:22]}  g5 {[%clk 0:01:10]} 52. Nf7 {[%clk 0:00:22]}  Nd4+ {[%clk 0:01:10]} 53. Ke3 {[%clk 0:00:22]}  Nc2+ {[%clk 0:01:10]} 54. Kd3 {[%clk 0:00:44]} 1/2-1/2


[Site "http://www.Chess.com"]

[Event "FIDE World Rapid Chess Championship 2021"]
[White "Karjakin, Sergey"]
[Black "Firouzja, Alireza"]
[WhiteFideId "14109603"]
[BlackFideId "12573981"]
[WhiteElo "2757"]
[BlackElo "2656"]
[Result "1-0"]
[Round "13"]
[TimeControl "900+10"]
[Date "2021.12.28"]
[WhiteClock "0:02:51"]
[BlackClock "0:00:21"]

1. d4 {[%clk 0:15:00]}  Nf6 {[%clk 0:15:00]} 2. c4 {[%clk 0:15:00]}  g6 {[%clk 0:15:00]} 3. Nc3 {[%clk 0:15:00]}  Bg7 {[%clk 0:15:00]} 4. e4 {[%clk 0:15:00]}  d6 {[%clk 0:15:00]} 5. Nf3 {[%clk 0:15:00]}  O-O {[%clk 0:15:00]} 6. Be2 {[%clk 0:15:47]}  e5 {[%clk 0:16:10]} 7. dxe5 {[%clk 0:15:47]}  dxe5 {[%clk 0:16:10]} 8. Qxd8 {[%clk 0:15:47]}  Rxd8 {[%clk 0:16:10]} 9. Bg5 {[%clk 0:15:47]}  Na6 {[%clk 0:16:10]} 10. Nd5 {[%clk 0:15:47]}  Rd6 {[%clk 0:14:57]} 11. Bxf6 {[%clk 0:15:47]}  Bxf6 {[%clk 0:14:57]} 12. O-O-O {[%clk 0:13:13]}  Bg4 {[%clk 0:14:59]} 13. b4 {[%clk 0:11:27]}  c6 {[%clk 0:14:46]} 14. c5 {[%clk 0:08:11]}  cxd5 {[%clk 0:14:46]} 15. cxd6 {[%clk 0:08:11]}  dxe4 {[%clk 0:14:46]} 16. Ng1 {[%clk 0:08:11]}  Bxe2 {[%clk 0:09:21]} 17. Nxe2 {[%clk 0:08:35]}  Nxb4 {[%clk 0:09:21]} 18. Kb1 {[%clk 0:08:35]}  Nd3 {[%clk 0:07:51]} 19. Rhf1 {[%clk 0:08:52]}  Rd8 {[%clk 0:07:51]} 20. Nc3 {[%clk 0:08:56]}  Rxd6 {[%clk 0:03:13]} 21. Nxe4 {[%clk 0:08:56]}  Rb6+ {[%clk 0:03:13]} 22. Ka1 {[%clk 0:08:56]}  Nb4 {[%clk 0:03:13]} 23. Nxf6+ {[%clk 0:08:56]}  Rxf6 {[%clk 0:03:13]} 24. Rd7 {[%clk 0:08:56]}  e4 {[%clk 0:03:06]} 25. f3 {[%clk 0:06:53]}  e3 {[%clk 0:00:10]} 26. Kb2 {[%clk 0:06:53]}  Rb6 {[%clk 0:00:10]} 27. Kc3 {[%clk 0:06:53]}  Nxa2+ {[%clk 0:00:10]} 28. Kd4 {[%clk 0:03:07]}  Rb3 {[%clk 0:02:09]} 29. Re1 {[%clk 0:03:07]}  Rb2 {[%clk 0:00:55]} 30. Rxe3 {[%clk 0:01:38]}  Rd2+ {[%clk 0:00:55]} 31. Rd3 {[%clk 0:01:38]}  Rxg2 {[%clk 0:00:55]} 32. Rxb7 {[%clk 0:01:38]}  Rxh2 {[%clk 0:00:55]} 33. Ra3 {[%clk 0:01:38]}  Rh4+ {[%clk 0:00:55]} 34. f4 {[%clk 0:01:23]}  Rxf4+ {[%clk 0:00:07]} 35. Ke3 {[%clk 0:01:23]}  Rb4 {[%clk 0:00:07]} 36. Rc7 {[%clk 0:01:23]}  Rb2 {[%clk 0:00:07]} 37. Raxa7 {[%clk 0:01:23]}  Kg7 {[%clk 0:00:07]} 38. Rxf7+ {[%clk 0:01:23]}  Kh6 {[%clk 0:00:07]} 39. Rxh7+ {[%clk 0:01:23]}  Kg5 {[%clk 0:00:07]} 40. Ra5+ {[%clk 0:01:23]}  Kf6 {[%clk 0:00:07]} 41. Ra6+ {[%clk 0:01:23]}  Kg5 {[%clk 0:00:07]} 42. Rg7 {[%clk 0:01:23]}  Nb4 {[%clk 0:00:07]} 43. Raxg6+ {[%clk 0:01:23]}  Kf5 {[%clk 0:00:07]} 44. Rg5+ {[%clk 0:01:23]}  Kf6 {[%clk 0:00:07]} 45. R7g6+ {[%clk 0:01:23]}  Kf7 {[%clk 0:00:07]} 46. Rd6 {[%clk 0:01:39]}  Nc2+ {[%clk 0:00:30]} 47. Ke4 {[%clk 0:01:39]}  Rb4+ {[%clk 0:00:30]} 48. Kd3 {[%clk 0:01:39]}  Ne1+ {[%clk 0:00:30]} 49. Ke2 {[%clk 0:01:39]}  Re4+ {[%clk 0:00:30]} 50. Kf2 {[%clk 0:01:39]}  Nc2 {[%clk 0:00:30]} 51. Rc5 {[%clk 0:01:39]}  Nb4 {[%clk 0:00:30]} 52. Rc7+ {[%clk 0:01:11]}  Re7 {[%clk 0:00:06]} 53. Rc4 {[%clk 0:01:11]}  Rb7 {[%clk 0:00:06]} 54. Re4 {[%clk 0:01:11]}  Rb5 {[%clk 0:00:06]} 55. Rh4 {[%clk 0:01:11]}  Ke7 {[%clk 0:00:06]} 56. Rhh6 {[%clk 0:01:11]}  Rd5 {[%clk 0:00:06]} 57. Rb6 {[%clk 0:01:11]}  Nd3+ {[%clk 0:00:06]} 58. Ke3 {[%clk 0:01:11]}  Kd7 {[%clk 0:00:06]} 59. Rh7+ {[%clk 0:01:11]}  Kc8 {[%clk 0:00:06]} 60. Rc6+ {[%clk 0:01:11]}  Kb8 {[%clk 0:00:06]} 61. Rg6 {[%clk 0:00:41]}  Rd8 {[%clk 0:00:12]} 62. Rg5 {[%clk 0:00:41]}  Ne1 {[%clk 0:00:12]} 63. Rb5+ {[%clk 0:00:41]}  Kc8 {[%clk 0:00:12]} 64. Rc5+ {[%clk 0:00:41]}  Kb8 {[%clk 0:00:12]} 65. Rc3 {[%clk 0:00:41]}  Rf8 {[%clk 0:00:12]} 66. Rb3+ {[%clk 0:00:41]}  Kc8 {[%clk 0:00:12]} 67. Rc3+ {[%clk 0:00:41]}  Kb8 {[%clk 0:00:12]} 68. Rb3+ {[%clk 0:00:41]}  Kc8 {[%clk 0:00:12]} 69. Ke4 {[%clk 0:00:41]}  Ng2 {[%clk 0:00:12]} 70. Rc3+ {[%clk 0:00:41]}  Kb8 {[%clk 0:00:12]} 71. Rb3+ {[%clk 0:00:41]}  Kc8 {[%clk 0:00:12]} 72. Rc3+ {[%clk 0:00:41]}  Kb8 {[%clk 0:00:12]} 73. Rh2 {[%clk 0:00:52]}  Rf4+ {[%clk 0:00:52]} 74. Ke5 {[%clk 0:00:52]}  Rg4 {[%clk 0:00:52]} 75. Kf5 {[%clk 0:00:52]}  Rg7 {[%clk 0:00:52]} 76. Rh8+ {[%clk 0:00:52]}  Kb7 {[%clk 0:00:52]} 77. Rh1 {[%clk 0:00:52]}  Rf7+ {[%clk 0:00:52]} 78. Ke6 {[%clk 0:00:52]}  Rc7 {[%clk 0:00:52]} 79. Rb3+ {[%clk 0:00:52]}  Ka8 {[%clk 0:00:52]} 80. Ra1+ {[%clk 0:00:52]}  Ra7 {[%clk 0:00:10]} 81. Rxa7+ {[%clk 0:00:54]}  Kxa7 {[%clk 0:00:10]} 82. Kf5 {[%clk 0:00:54]}  Ne1 {[%clk 0:00:10]} 83. Ke4 {[%clk 0:00:54]}  Ng2 {[%clk 0:00:21]} 84. Rg3 {[%clk 0:02:51]}  Ne1 {[%clk 0:00:21]} 85. Ra3+ {[%clk 0:02:51]}  Kb6 {[%clk 0:00:21]} 86. Ra2 {[%clk 0:02:51]} 1-0


[Site "http://www.Chess.com"]